{"text_format":"3","workbook":"xlsx","n_sheets":6,"sheets":["Początek","Pulpit nawigacyjny","Wydatki i przychody","Raport budżetu","Listy danych","Tabela przestawna kategorii"],"not_rendered":{"charts":3,"defined_names":23,"pivot_tables":2},"read":"whole","date_system":"1900"}

{"sheet":"Początek","index":0,"n_rows":8,"n_cols":2,"rows_kept":8}
[null,"Informacje o szablonie"]
[null,"Ten szablon umożliwia utworzenie półmiesięcznego budżetu domowego."]
[null,"Arkusz Pulpit nawigacyjny zawiera wykresy dla sum miesięcznych i rocznych oraz tabelę zawierającą informacje o dwutygodniowych przychodach i wydatkach."]
[null,"Wprowadź kategorie w arkuszu Listy danych oraz wartości w arkuszu Przychody i wydatki."]
[null,"Odśwież tabelę przestawną w arkuszu Raport budżetowy."]
[null,"Uwaga:"]
[null,"W kolumnie A we wszystkich arkuszach podano dodatkowe instrukcje. Ten tekst celowo został ukryty. Aby usunąć tekst, zaznacz kolumnę A, a następnie naciśnij klawisz DELETE. "]
[null,"Aby uzyskać więcej informacji o tabeli, naciśnij w tabeli klawisz SHIFT, a następnie F10, wybierz opcję TABLE, a następnie ALTERNATIVE TEXT. W tabelach przestawnych naciśnij klawisz SHIFT, a następnie F10, wybierz pozycję PIVOTTABLE OPTIONS, a następnie kartę ALT TEXT."]

{"sheet":"Pulpit nawigacyjny","index":1,"n_rows":12,"n_cols":15,"rows_kept":12,"merged":[[0,1,0,13],[1,2,1,7]]}
["W tym arkuszu utwórz pulpit nawigacyjnego dla sum miesięcznych i rocznych oraz dwutygodniowych przychodów i wydatków. W komórkach w tej kolumnie podano przydatne instrukcje na temat korzystania z tego arkusza. W komórce po prawej stronie znajduje się tytuł tego skoroszytu, a w komórce O1 tytuł arkusza.","Półmiesięczny budżet domowy",{"$nulls":12},"PULPIT NAWIGACYJNY"]
["Wybierz suwak w komórce C2, aby zmienić miesiąc w komórce po prawej stronie. Wybierz suwak w komórce J2, aby zmienić rok w komórce I2.",{"$f":"CHOOSE(Numer_miesiąca,\"STYCZEŃ\",\"LUTY\",\"MARZEC\",\"KWIECIEŃ\",\"MAJ\",\"CZERWIEC\",\"LIPIEC\",\"SIERPIEŃ\",\"WRZESIEŃ\",\"PAŹDZIERNIK\",\"LISTOPAD\",\"GRUDZIEŃ\")","v":"GRUDZIEŃ"},12,{"$nulls":5},{"$f":"YEAR(TODAY())","v":2022}]
["W komórce po prawej stronie znajduje się etykieta Sumy miesięczne, a w komórce I3 — etykieta Sumy roczne.","SUMY MIESIĘCZNE",{"$nulls":6},"SUMY ROCZNE"]
["W komórce C4 znajduje się wykres słupkowy porównujący sumy miesięcznych przychodów z sumami miesięcznych wydatków, a w komórce J4 — wykres słupkowy porównujący sumy rocznych przychodów z sumami rocznych wydatków. Dalsze instrukcje znajdują się w komórce A8.","PRZYCHODY",null,{"$f":"Miesięczne_sumy_wydatków","v":{"v":0,"d":"0 zł"}},{"$nulls":4},"PRZYCHODY",null,null,{"$f":"Całkowite_roczne_wydatki","v":{"v":10742,"d":"10,742 zł"}}]
[null,"WYDATKI",null,{"$f":"Miesięczne_sumy_przychodów","v":{"v":0,"d":"0 zł"}},{"$nulls":4},"WYDATKI",null,null,{"$f":"Całkowite_roczne_przychody","v":{"v":13200,"d":"13,200 zł"}}]
[]
[]
["Tabela pulpitu nawigacyjnego zaczynająca się w komórce po prawej stronie jest automatycznie aktualizowana.","Kategoria","STYCZEŃ","LUTY","MARZEC","KWIECIEŃ","MAJ","CZERWIEC","LIPIEC","SIERPIEŃ","WRZESIEŃ","PAŹDZIERNIK","LISTOPAD","GRUDZIEŃ","Wykres przebiegu w czasie"]
[null,"Przychody 1–15",{"$f":"SUMIFS(Przychód[KWOTA],Przychód[DATA],\"<=\"&Data_w_środku,Przychód[DATA],\">=\"&Data_początku)","v":{"v":0,"d":"0.00 zł"}},{"$f":"SUMIFS(Przychód[KWOTA],Przychód[DATA],\"<=\"&Data_w_środku,Przychód[DATA],\">=\"&Data_początku)","v":{"v":0,"d":"0.00 zł"}},{"$f":"SUMIFS(Przychód[KWOTA],Przychód[DATA],\"<=\"&Data_w_środku,Przychód[DATA],\">=\"&Data_początku)","v":{"v":1300,"d":"1,300.00 zł"}},{"$f":"SUMIFS(Przychód[KWOTA],Przychód[DATA],\"<=\"&Data_w_środku,Przychód[DATA],\">=\"&Data_początku)","v":{"v":2600,"d":"2,600.00 zł"}},{"$f":"SUMIFS(Przychód[KWOTA],Przychód[DATA],\"<=\"&Data_w_środku,Przychód[DATA],\">=\"&Data_początku)","v":{"v":2600,"d":"2,600.00 zł"}},{"$f":"SUMIFS(Przychód[KWOTA],Przychód[DATA],\"<=\"&Data_w_środku,Przychód[DATA],\">=\"&Data_początku)","v":{"v":0,"d":"0.00 zł"}},{"$f":"SUMIFS(Przychód[KWOTA],Przychód[DATA],\"<=\"&Data_w_środku,Przychód[DATA],\">=\"&Data_początku)","v":{"v":0,"d":"0.00 zł"}},{"$f":"SUMIFS(Przychód[KWOTA],Przychód[DATA],\"<=\"&Data_w_środku,Przychód[DATA],\">=\"&Data_początku)","v":{"v":0,"d":"0.00 zł"}},{"$f":"SUMIFS(Przychód[KWOTA],Przychód[DATA],\"<=\"&Data_w_środku,Przychód[DATA],\">=\"&Data_początku)","v":{"v":0,"d":"0.00 zł"}},{"$f":"SUMIFS(Przychód[KWOTA],Przychód[DATA],\"<=\"&Data_w_środku,Przychód[DATA],\">=\"&Data_początku)","v":{"v":0,"d":"0.00 zł"}},{"$f":"SUMIFS(Przychód[KWOTA],Przychód[DATA],\"<=\"&Data_w_środku,Przychód[DATA],\">=\"&Data_początku)","v":{"v":0,"d":"0.00 zł"}},{"$f":"SUMIFS(Przychód[KWOTA],Przychód[DATA],\"<=\"&Data_w_środku,Przychód[DATA],\">=\"&Data_początku)","v":{"v":0,"d":"0.00 zł"}}]
[null,"Przychody 16–koniec miesiąca",{"$f":"SUMIFS(Przychód[KWOTA],Przychód[DATA],\"<=\"&Data_zakończenia,Przychód[DATA],\">=\"&Data_w_środku+1)","v":{"v":0,"d":"0.00 zł"}},{"$f":"SUMIFS(Przychód[KWOTA],Przychód[DATA],\"<=\"&Data_zakończenia,Przychód[DATA],\">=\"&Data_w_środku+1)","v":{"v":0,"d":"0.00 zł"}},{"$f":"SUMIFS(Przychód[KWOTA],Przychód[DATA],\"<=\"&Data_zakończenia,Przychód[DATA],\">=\"&Data_w_środku+1)","v":{"v":3100,"d":"3,100.00 zł"}},{"$f":"SUMIFS(Przychód[KWOTA],Przychód[DATA],\"<=\"&Data_zakończenia,Przychód[DATA],\">=\"&Data_w_środku+1)","v":{"v":3100,"d":"3,100.00 zł"}},{"$f":"SUMIFS(Przychód[KWOTA],Przychód[DATA],\"<=\"&Data_zakończenia,Przychód[DATA],\">=\"&Data_w_środku+1)","v":{"v":500,"d":"500.00 zł"}},{"$f":"SUMIFS(Przychód[KWOTA],Przychód[DATA],\"<=\"&Data_zakończenia,Przychód[DATA],\">=\"&Data_w_środku+1)","v":{"v":0,"d":"0.00 zł"}},{"$f":"SUMIFS(Przychód[KWOTA],Przychód[DATA],\"<=\"&Data_zakończenia,Przychód[DATA],\">=\"&Data_w_środku+1)","v":{"v":0,"d":"0.00 zł"}},{"$f":"SUMIFS(Przychód[KWOTA],Przychód[DATA],\"<=\"&Data_zakończenia,Przychód[DATA],\">=\"&Data_w_środku+1)","v":{"v":0,"d":"0.00 zł"}},{"$f":"SUMIFS(Przychód[KWOTA],Przychód[DATA],\"<=\"&Data_zakończenia,Przychód[DATA],\">=\"&Data_w_środku+1)","v":{"v":0,"d":"0.00 zł"}},{"$f":"SUMIFS(Przychód[KWOTA],Przychód[DATA],\"<=\"&Data_zakończenia,Przychód[DATA],\">=\"&Data_w_środku+1)","v":{"v":0,"d":"0.00 zł"}},{"$f":"SUMIFS(Przychód[KWOTA],Przychód[DATA],\"<=\"&Data_zakończenia,Przychód[DATA],\">=\"&Data_w_środku+1)","v":{"v":0,"d":"0.00 zł"}},{"$f":"SUMIFS(Przychód[KWOTA],Przychód[DATA],\"<=\"&Data_zakończenia,Przychód[DATA],\">=\"&Data_w_środku+1)","v":{"v":0,"d":"0.00 zł"}}]
[null,"Wydatki 1–15",{"$f":"SUMIFS(Wydatki[KWOTA],Wydatki[DATA],\"<=\"&Data_w_środku+1,Wydatki[DATA],\">=\"&Data_początku)","v":{"v":0,"d":"0.00 zł"}},{"$f":"SUMIFS(Wydatki[KWOTA],Wydatki[DATA],\"<=\"&Data_w_środku+1,Wydatki[DATA],\">=\"&Data_początku)","v":{"v":0,"d":"0.00 zł"}},{"$f":"SUMIFS(Wydatki[KWOTA],Wydatki[DATA],\"<=\"&Data_w_środku+1,Wydatki[DATA],\">=\"&Data_początku)","v":{"v":1150,"d":"1,150.00 zł"}},{"$f":"SUMIFS(Wydatki[KWOTA],Wydatki[DATA],\"<=\"&Data_w_środku+1,Wydatki[DATA],\">=\"&Data_początku)","v":{"v":5225,"d":"5,225.00 zł"}},{"$f":"SUMIFS(Wydatki[KWOTA],Wydatki[DATA],\"<=\"&Data_w_środku+1,Wydatki[DATA],\">=\"&Data_początku)","v":{"v":3242,"d":"3,242.00 zł"}},{"$f":"SUMIFS(Wydatki[KWOTA],Wydatki[DATA],\"<=\"&Data_w_środku+1,Wydatki[DATA],\">=\"&Data_początku)","v":{"v":0,"d":"0.00 zł"}},{"$f":"SUMIFS(Wydatki[KWOTA],Wydatki[DATA],\"<=\"&Data_w_środku+1,Wydatki[DATA],\">=\"&Data_początku)","v":{"v":0,"d":"0.00 zł"}},{"$f":"SUMIFS(Wydatki[KWOTA],Wydatki[DATA],\"<=\"&Data_w_środku+1,Wydatki[DATA],\">=\"&Data_początku)","v":{"v":0,"d":"0.00 zł"}},{"$f":"SUMIFS(Wydatki[KWOTA],Wydatki[DATA],\"<=\"&Data_w_środku+1,Wydatki[DATA],\">=\"&Data_początku)","v":{"v":0,"d":"0.00 zł"}},{"$f":"SUMIFS(Wydatki[KWOTA],Wydatki[DATA],\"<=\"&Data_w_środku+1,Wydatki[DATA],\">=\"&Data_początku)","v":{"v":0,"d":"0.00 zł"}},{"$f":"SUMIFS(Wydatki[KWOTA],Wydatki[DATA],\"<=\"&Data_w_środku+1,Wydatki[DATA],\">=\"&Data_początku)","v":{"v":0,"d":"0.00 zł"}},{"$f":"SUMIFS(Wydatki[KWOTA],Wydatki[DATA],\"<=\"&Data_w_środku+1,Wydatki[DATA],\">=\"&Data_początku)","v":{"v":0,"d":"0.00 zł"}}]
[null,"Wydatki 16–koniec miesiąca",{"$f":"SUMIFS(Wydatki[KWOTA],Wydatki[DATA],\"<=\"&Data_zakończenia,Wydatki[DATA],\">=\"&Data_w_środku+1)","v":{"v":0,"d":"0.00 zł"}},{"$f":"SUMIFS(Wydatki[KWOTA],Wydatki[DATA],\"<=\"&Data_zakończenia,Wydatki[DATA],\">=\"&Data_w_środku+1)","v":{"v":75,"d":"75.00 zł"}},{"$f":"SUMIFS(Wydatki[KWOTA],Wydatki[DATA],\"<=\"&Data_zakończenia,Wydatki[DATA],\">=\"&Data_w_środku+1)","v":{"v":200,"d":"200.00 zł"}},{"$f":"SUMIFS(Wydatki[KWOTA],Wydatki[DATA],\"<=\"&Data_zakończenia,Wydatki[DATA],\">=\"&Data_w_środku+1)","v":{"v":900,"d":"900.00 zł"}},{"$f":"SUMIFS(Wydatki[KWOTA],Wydatki[DATA],\"<=\"&Data_zakończenia,Wydatki[DATA],\">=\"&Data_w_środku+1)","v":{"v":500,"d":"500.00 zł"}},{"$f":"SUMIFS(Wydatki[KWOTA],Wydatki[DATA],\"<=\"&Data_zakończenia,Wydatki[DATA],\">=\"&Data_w_środku+1)","v":{"v":0,"d":"0.00 zł"}},{"$f":"SUMIFS(Wydatki[KWOTA],Wydatki[DATA],\"<=\"&Data_zakończenia,Wydatki[DATA],\">=\"&Data_w_środku+1)","v":{"v":0,"d":"0.00 zł"}},{"$f":"SUMIFS(Wydatki[KWOTA],Wydatki[DATA],\"<=\"&Data_zakończenia,Wydatki[DATA],\">=\"&Data_w_środku+1)","v":{"v":0,"d":"0.00 zł"}},{"$f":"SUMIFS(Wydatki[KWOTA],Wydatki[DATA],\"<=\"&Data_zakończenia,Wydatki[DATA],\">=\"&Data_w_środku+1)","v":{"v":0,"d":"0.00 zł"}},{"$f":"SUMIFS(Wydatki[KWOTA],Wydatki[DATA],\"<=\"&Data_zakończenia,Wydatki[DATA],\">=\"&Data_w_środku+1)","v":{"v":0,"d":"0.00 zł"}},{"$f":"SUMIFS(Wydatki[KWOTA],Wydatki[DATA],\"<=\"&Data_zakończenia,Wydatki[DATA],\">=\"&Data_w_środku+1)","v":{"v":0,"d":"0.00 zł"}},{"$f":"SUMIFS(Wydatki[KWOTA],Wydatki[DATA],\"<=\"&Data_zakończenia,Wydatki[DATA],\">=\"&Data_w_środku+1)","v":{"v":0,"d":"0.00 zł"}}]

{"sheet":"Wydatki i przychody","index":2,"n_rows":36,"n_cols":9,"rows_kept":36,"merged":[[0,1,0,6],[0,7,0,8]]}
["Utwórz listę przychodów i wydatków w tym arkuszu. W komórkach w tej kolumnie podano przydatne instrukcje na temat korzystania z tego arkusza. Tytuł skoroszytu znajduje się w komórce po prawej stronie, a tytuł arkusza w komórce H1.",{"$f":"Półmiesięczny_budżet_domowy_tytuł","v":"Półmiesięczny budżet domowy"},{"$nulls":5},"PRZYCHODY I WYDATKI"]
["Etykieta przychodów znajduje się w komórce po prawej stronie, a etykieta wydatków w komórce F2.","PRZYCHODY",{"$nulls":3},"WYDATKI"]
["Wprowadź szczegóły w tabeli Przychody, rozpoczynając w komórce po prawej stronie, a w tabeli Wydatki, rozpoczynając w komórce F3.","DATA","OPIS","KWOTA",null,"DATA","KATEGORIA","OPIS","KWOTA"]
[null,{"$f":"TODAY()","v":"2022-05-16"},"Bonus",{"v":500,"d":"500.00 zł"},null,{"$f":"TODAY()","v":"2022-05-16"},"Artykuły medyczne","Ubezpieczenie",{"v":500,"d":"500.00 zł"}]
[null,{"$f":"TODAY()-14","v":"2022-05-02"},"Wypłata Dominika",{"v":1300,"d":"1,300.00 zł"},null,{"$f":"TODAY()-7","v":"2022-05-09"},"Gospodarstwo domowe","Kredyt hipoteczny",{"v":1000,"d":"1,000.00 zł"}]
[null,{"$f":"TODAY()-14","v":"2022-05-02"},"Wypłata Anny",{"v":1300,"d":"1,300.00 zł"},null,"2022-05-09","Gospodarstwo domowe","Energia elektryczna",{"v":100,"d":"100.00 zł"}]
[null,{"$f":"TODAY()-28","v":"2022-04-18"},"Wypłata Dominika",{"v":1500,"d":"1,500.00 zł"},null,"2022-05-09","Gospodarstwo domowe","Woda/ścieki",{"v":50,"d":"50.00 zł"}]
[null,{"$f":"TODAY()-28","v":"2022-04-18"},"Wypłata Anny",{"v":1600,"d":"1,600.00 zł"},null,"2022-05-09","Gospodarstwo domowe","Śmieci",{"v":25,"d":"25.00 zł"}]
[null,{"$f":"TODAY()-42","v":"2022-04-04"},"Wypłata Dominika",{"v":1300,"d":"1,300.00 zł"},null,"2022-05-09","Gospodarstwo domowe","Telefon komórkowy",{"v":100,"d":"100.00 zł"}]
[null,{"$f":"TODAY()-42","v":"2022-04-04"},"Wypłata Anny",{"v":1300,"d":"1,300.00 zł"},null,"2022-05-09","Gospodarstwo domowe","Telefon komórkowy",{"v":30,"d":"30.00 zł"}]
[null,{"$f":"TODAY()-56","v":"2022-03-21"},"Wypłata Dominika",{"v":1500,"d":"1,500.00 zł"},null,"2022-05-09","Gospodarstwo domowe","Kredyt hipoteczny",{"v":50,"d":"50.00 zł"}]
[null,{"$f":"TODAY()-56","v":"2022-03-21"},"Wypłata Anny",{"v":1600,"d":"1,600.00 zł"},null,"2022-05-09","Gospodarstwo domowe","Telefon komórkowy",{"v":50,"d":"50.00 zł"}]
[null,{"$f":"TODAY()-70","v":"2022-03-07"},"Wypłata Dominika",{"v":1300,"d":"1,300.00 zł"},null,{"$f":"TODAY()-7","v":"2022-05-09"},"Gospodarstwo domowe","Telefon komórkowy",{"v":25,"d":"25.00 zł"}]
[{"$nulls":5},{"$f":"TODAY()-8","v":"2022-05-08"},"Gospodarstwo domowe","Energia elektryczna",{"v":100,"d":"100.00 zł"}]
[{"$nulls":5},{"$f":"TODAY()-9","v":"2022-05-07"},"Rozrywka","Kino",{"v":37,"d":"37.00 zł"}]
[{"$nulls":5},{"$f":"TODAY()-10","v":"2022-05-06"},"Żywność","Artykuły spożywcze",{"v":350,"d":"350.00 zł"}]
[{"$nulls":5},{"$f":"TODAY()-11","v":"2022-05-05"},"Żywność","Restauracje",{"v":75,"d":"75.00 zł"}]
[{"$nulls":5},{"$f":"TODAY()-12","v":"2022-05-04"},"Dzieci","Pieniądze na obiad",{"v":150,"d":"150.00 zł"}]
[{"$nulls":5},{"$f":"TODAY()-13","v":"2022-05-03"},"Konta inwestycyjne","Oszczędności",{"v":250,"d":"250.00 zł"}]
[{"$nulls":5},{"$f":"TODAY()-14","v":"2022-05-02"},"Konta inwestycyjne","Fundusz inwestycyjny",{"v":250,"d":"250.00 zł"}]
[{"$nulls":5},{"$f":"TODAY()-15","v":"2022-05-01"},"Osobiste","Klub fitness/zajęcia sportowe",{"v":100,"d":"100.00 zł"}]
[{"$nulls":5},{"$f":"TODAY()-16","v":"2022-04-30"},"Zwierzęta","Żywność",{"v":50,"d":"50.00 zł"}]
[{"$nulls":5},{"$f":"TODAY()-20","v":"2022-04-26"},"Zwierzęta","Pielęgnacja",{"v":50,"d":"50.00 zł"}]
[{"$nulls":5},{"$f":"TODAY()-20","v":"2022-04-26"},"Zwierzęta","Inne",{"v":50,"d":"50.00 zł"}]
[{"$nulls":5},{"$f":"TODAY()-25","v":"2022-04-21"},"Transport","Rata za samochód 1 ",{"v":300,"d":"300.00 zł"}]
[{"$nulls":5},{"$f":"TODAY()-25","v":"2022-04-21"},"Transport","Rata za samochód 2 ",{"v":350,"d":"350.00 zł"}]
[{"$nulls":5},{"$f":"TODAY()-25","v":"2022-04-21"},"Transport","Ubezpieczenie samochodu",{"v":50,"d":"50.00 zł"}]
[{"$nulls":5},{"$f":"TODAY()-30","v":"2022-04-16"},"Transport","Paliwo",{"v":50,"d":"50.00 zł"}]
[{"$nulls":5},{"$f":"TODAY()-31","v":"2022-04-15"},"Transport","Paliwo",{"v":25,"d":"25.00 zł"}]
[{"$nulls":5},{"$f":"TODAY()-42","v":"2022-04-04"},"Transport","Rata za samochód 2 ",{"v":150,"d":"150.00 zł"}]
[{"$nulls":5},{"$f":"TODAY()-45","v":"2022-04-01"},"Gospodarstwo domowe","Kredyt hipoteczny",{"v":5000,"d":"5,000.00 zł"}]
[{"$nulls":5},{"$f":"TODAY()-50","v":"2022-03-27"},"Gospodarstwo domowe","Energia elektryczna",{"v":200,"d":"200.00 zł"}]
[{"$nulls":5},{"$f":"TODAY()-65","v":"2022-03-12"},"Gospodarstwo domowe","Telefon komórkowy",{"v":100,"d":"100.00 zł"}]
[{"$nulls":5},{"$f":"TODAY()-70","v":"2022-03-07"},"Gospodarstwo domowe","Śmieci",{"v":50,"d":"50.00 zł"}]
[{"$nulls":5},{"$f":"TODAY()-75","v":"2022-03-02"},"Gospodarstwo domowe","Kredyt hipoteczny",{"v":1000,"d":"1,000.00 zł"}]
[{"$nulls":5},{"$f":"TODAY()-78","v":"2022-02-27"},"Rozrywka","Kino",{"v":75,"d":"75.00 zł"}]

{"sheet":"Raport budżetu","index":3,"n_rows":26,"n_cols":6,"rows_kept":26,"merged":[[0,1,0,4],[1,1,1,3],[4,3,4,5]]}
["W tym arkuszu utwórz raport budżetu. W komórkach w tej kolumnie podano przydatne instrukcje na temat korzystania z tego arkusza. Tytuł skoroszytu znajduje się w komórce po prawej stronie, a tytuł arkusza w komórce F1.",{"$f":"Półmiesięczny_budżet_domowy_tytuł","v":"Półmiesięczny budżet domowy"},{"$nulls":3},"RAPORT BUDŻETU"]
["Wybierz pozycję Lata, Kwartały, Miesiące lub Dni i użyj suwaka w komórce po prawej stronie, aby pobrać tabelę przestawną wydatków dla wybranego okresu. Fragmentator kategorii do filtrowania danych w tabeli przestawnej znajduje się w komórce E2, a fragmentator kolumny Opis w komórce F2.","Oś czasu do filtrowania znajduje się w tej komórce.",null,null,"W tej komórce znajduje się fragmentator do filtrowania danych tabeli przestawnej według kolumny Kategoria.","W tej komórce znajduje się fragmentator do filtrowania danych tabeli przestawnej według kolumny Opis."]
["W komórce po prawej stronie znajduje się porada.","Naciśnij klawisze Shift+F10 w tabeli przestawnej Wydatki, a następnie wybierz pozycję Odśwież, aby zaktualizować dane w tym arkuszu, lub wybierz pozycję Odśwież na karcie Analiza."]
["Etykieta Wydatki znajduje się w komórce po prawej stronie.","WYDATKI"]
["Tabela przestawna przedstawiająca wydatki zaczyna się w komórce po prawej stronie. Etykieta Sumy kategorii znajduje się w komórce D4.","Etykiety wierszy","Suma z KWOTA","SUMY KATEGORII"]
["Wykres kołowy porównujący sumy poszczególnych kategorii znajduje się w komórce D6.","Artykuły spożywcze",{"v":350,"d":"350.00 zł"}]
[null,"Energia elektryczna",{"v":400,"d":"400.00 zł"}]
[null,"Fundusz inwestycyjny",{"v":250,"d":"250.00 zł"}]
[null,"Inne",{"v":50,"d":"50.00 zł"}]
[null,"Kino",{"v":112,"d":"112.00 zł"}]
[null,"Klub fitness/zajęcia sportowe",{"v":100,"d":"100.00 zł"}]
[null,"Kredyt hipoteczny",{"v":7050,"d":"7,050.00 zł"}]
[null,"Oszczędności",{"v":250,"d":"250.00 zł"}]
[null,"Paliwo",{"v":75,"d":"75.00 zł"}]
[null,"Pielęgnacja",{"v":50,"d":"50.00 zł"}]
[null,"Pieniądze na obiad",{"v":150,"d":"150.00 zł"}]
[null,"Rata za samochód 1 ",{"v":300,"d":"300.00 zł"}]
[null,"Rata za samochód 2 ",{"v":500,"d":"500.00 zł"}]
[null,"Restauracje",{"v":75,"d":"75.00 zł"}]
[null,"Śmieci",{"v":75,"d":"75.00 zł"}]
[null,"Telefon komórkowy",{"v":305,"d":"305.00 zł"}]
[null,"Ubezpieczenie",{"v":500,"d":"500.00 zł"}]
[null,"Ubezpieczenie samochodu",{"v":50,"d":"50.00 zł"}]
[null,"Woda/ścieki",{"v":50,"d":"50.00 zł"}]
[null,"Żywność",{"v":50,"d":"50.00 zł"}]
[null,"Suma końcowa",{"v":10742,"d":"10,742.00 zł"}]

{"sheet":"Listy danych","index":4,"n_rows":8,"n_cols":13,"rows_kept":8,"merged":[[0,1,0,11]]}
["Wprowadź dane kategorii w tym arkuszu, aby wypełnić listy rozwijane w tabeli Wydatki w arkuszu Wydatki i przychody. Zmień nazwy kategorii lub opisy poniżej każdej kategorii, aby zaktualizować listy. W komórkach w tej kolumnie podano przydatne instrukcje na temat korzystania z tego arkusza. Tytuł skoroszytu znajduje się w komórce po prawej stronie, a tytuł arkusza w komórce M1.",{"$f":"Półmiesięczny_budżet_domowy_tytuł","v":"Półmiesięczny budżet domowy"},{"$nulls":10},"LISTY DANYCH"]
["W komórce po prawej stronie znajduje się porada.","KONFIGURACJA         Poniższe dane w kolumnie Kategoria wypełniają listy w tabeli Wydatki w arkuszu Wydatki i przychody. Zmodyfikuj nazwy kategorii lub opisy poniżej każdej kategorii, aby zaktualizować listy."]
["Wprowadź lub zmodyfikuj nazwy kategorii lub opisy poniżej każdej kategorii w tabeli, zaczynając od komórki po prawej stronie.","Gospodarstwo domowe","Rozrywka","Żywność","Prezenty/darowizny","Dzieci","Konta inwestycyjne","Artykuły medyczne","Inne","Osobiste","Zwierzęta","Podatki/usługi prawnicze","Transport"]
[null,"Kredyt hipoteczny","Kino","Artykuły spożywcze","Cele charytatywne 1","Ubrania","Indywidualne konto emerytalne","Lekarz/przychodnia","Inne","Ubrania","Żywność","Podatki państwowe","Rata za samochód 1 "]
[null,"Energia elektryczna","Serwisy wideo/filmy","Restauracje","Cele charytatywne 2","Zabawki/gry","Oszczędności","Ubezpieczenie","Składki organizacyjne","Włosy/paznokcie","Artykuły","Wojewódzkie","Rata za samochód 2 "]
[null,"Woda/ścieki","Muzyka",null,"Cele charytatywne 3","Pieniądze na obiad","Rachunek bieżący",null,null,"Pralnia chemiczna","Artykuły medyczne","Lokalne","Ubezpieczenie samochodu"]
[null,"Śmieci","Koncerty/teatr",null,"Prezent","Należności/opłaty","Emerytura",null,null,"Klub fitness/zajęcia sportowe","Pielęgnacja","Inne","Licencjonowanie/rejestracja"]
[null,"Telefon komórkowy","Imprezy sportowe",null,null,"Artykuły szkolne","Fundusz inwestycyjny",null,null,"Zakupy","Inne","Prawnik","Paliwo"]

{"sheet":"Tabela przestawna kategorii","index":5,"n_rows":13,"n_cols":13,"rows_kept":13,"hidden":true}
[null,"Półmiesięczny budżet domowy",{"$nulls":10},"TABELA PRZESTAWNA KATEGORII"]
[null,"Ta tabela przestawna jest źródłem danych dla wykresu przestawnego Sumy kategorii w arkuszu Raport budżetu. "]
[null,"Etykiety wierszy","Suma z KWOTA"]
[null,"Artykuły medyczne",{"v":500,"d":"500 zł"}]
[null,"Dzieci",{"v":150,"d":"150 zł"}]
[null,"Gospodarstwo domowe",{"v":7880,"d":"7,880 zł"}]
[null,"Konta inwestycyjne",{"v":500,"d":"500 zł"}]
[null,"Osobiste",{"v":100,"d":"100 zł"}]
[null,"Rozrywka",{"v":112,"d":"112 zł"}]
[null,"Transport",{"v":925,"d":"925 zł"}]
[null,"Zwierzęta",{"v":150,"d":"150 zł"}]
[null,"Żywność",{"v":425,"d":"425 zł"}]
[null,"Suma końcowa",{"v":10742,"d":"10,742 zł"}]